fUSD/lending_fUSD_20250609
["ID","MTS","AMOUNT","RATE_DAILY","PERIOD"]
[365171765,1749511851097,-740.01,0.00016931,2]
[365171766,1749511851106,-490.0,0.00016931,2]
[365171767,1749511851115,-490.0,0.00016931,2]
[365171768,1749511851125,-490.0,0.00016931,2]
[365171769,1749511851134,-490.0,0.00016931,2]
[365171770,1749511851144,-626.45,0.00016931,2]
[365171771,1749511851153,-490.0,0.00016931,2]
[365171772,1749511851162,-490.0,0.00016931,2]
[365171773,1749511851171,-535.83,0.00016931,2]
[365171774,1749511851180,-759.85,0.00016931,2]
[365171775,1749511851189,-490.0,0.00016931,2]
[365171776,1749511851199,-190.31193034,0.00016931,2]
[365171777,1749511851208,-490.0,0.00016931,2]
[365171778,1749511851217,-1329.3,0.00016931,2]
[365171779,1749511851226,-490.0,0.00016931,2]
[365171780,1749511851235,-527.31,0.00016931,2]
[365171781,1749511851244,-490.0,0.00016931,2]
[365171782,1749511851253,-490.0,0.00016931,2]
[365171783,1749511851262,-490.0,0.00016931,2]
[365171784,1749511851271,-490.0,0.00016931,2]
[365171785,1749511851280,-490.0,0.00016931,2]
[365171786,1749511851290,-490.0,0.00016931,2]
[365171787,1749511851299,-512.92,0.00016931,2]
[365171788,1749511851312,-616.16,0.00016931,2]
[365171789,1749511851321,-1264.3,0.00016931,2]
[365171790,1749511851331,-490.0,0.00016931,2]
[365171791,1749511851341,-490.0,0.00016931,2]
[365171792,1749511851352,-490.0,0.00016931,2]
[365171793,1749511851362,-610.13,0.00016931,2]
[365171794,1749511851372,-660.15,0.00016931,2]
[365171795,1749511851383,-1121.41,0.00016931,2]
[365171796,1749511851401,-498.87,0.00016931,2]
[365171797,1749511851415,-555.04,0.00016931,2]
[365171798,1749511851426,-764.26,0.00016931,2]
[365171799,1749511851436,-672.84,0.00016931,2]
[365171800,1749511851446,-627.49,0.00016931,2]
[365171801,1749511851456,-1275.4,0.00016931,2]
[365171802,1749511851466,-490.0,0.00016931,2]
[365171803,1749511851476,-180.10966815,0.00016931,2]
[365171804,1749511851486,-772.9,0.00016931,2]
[365171805,1749511851496,-490.0,0.00016931,2]
[365171806,1749511851506,-1208.78,0.00016931,2]
[365171807,1749511851515,-490.0,0.00016931,2]
[365171808,1749511851525,-490.0,0.00016931,2]
[365171809,1749511851536,-490.0,0.00016931,2]
[365171810,1749511851545,-490.0,0.00016931,2]
[365171811,1749511851555,-506.43,0.00016931,2]
[365171812,1749511851565,-490.0,0.00016931,2]
[365171813,1749511851575,-490.0,0.00016931,2]
[365171814,1749511851588,-502.19,0.00016931,2]
[365171815,1749511851599,-490.0,0.00016931,2]
[365171816,1749511851610,-3249.0,0.00016931,2]
[365171817,1749511851621,-634.37,0.00016931,2]
[365171818,1749511851632,-800.68,0.00016931,2]
[365171819,1749511851642,-490.0,0.00016931,2]
[365171820,1749511851651,-151.0,0.00016931,2]
[365171821,1749511851661,-490.0,0.00016931,2]
[365171822,1749511851672,-896.11,0.00016931,2]
[365171823,1749511851683,-490.0,0.00016931,2]
[365171824,1749511851693,-681.52,0.00016931,2]
[365171825,1749511851703,-490.0,0.00016931,2]
[365171826,1749511851714,-490.0,0.00016931,2]
[365171827,1749511851724,-2965.23,0.00016931,2]
[365171828,1749511851734,-490.0,0.00016931,2]
[365171829,1749511851746,-490.0,0.00016931,2]
[365171830,1749511851756,-490.0,0.00016931,2]
[365171831,1749511851767,-490.0,0.00016931,2]
[365171832,1749511851777,-490.0,0.00016931,2]
[365171833,1749511851788,-719.75,0.00016931,2]
[365171834,1749511851798,-151.0,0.00016931,2]
[365171835,1749511851809,-490.0,0.00016931,2]
[365171836,1749511851819,-151.0,0.00016931,2]
[365171837,1749511851830,-490.0,0.00016931,2]
[365171838,1749511851840,-151.0,0.00016931,2]
[365171839,1749511851850,-616.58,0.00016931,2]
[365171840,1749511851860,-490.0,0.00016931,2]
[365171841,1749511851871,-490.0,0.00016931,2]
[365171842,1749511851881,-497.74,0.00016931,2]
[365171843,1749511851892,-730.14,0.00016931,2]
[365171844,1749511851903,-490.0,0.00016931,2]
[365171845,1749511851914,-582.3,0.00016931,2]
[365171846,1749511851924,-1070.79,0.00016931,2]
[365171847,1749511851935,-490.0,0.00016931,2]
[365171848,1749511851945,-839.92,0.00016931,2]
[365171849,1749511851957,-686.6,0.00016931,2]
[365171850,1749511851967,-501.75,0.00016931,2]
[365171851,1749511851977,-490.0,0.00016931,2]
[365171852,1749511851989,-490.0,0.00016931,2]
[365171853,1749511851999,-309.30865151,0.00016931,2]
[365171854,1749511852011,-1307.39,0.00016931,2]
[365171855,1749511852021,-30997.62,0.00016931,2]
[365171856,1749511852033,-613.87,0.00016931,2]
[365171857,1749511852044,-490.0,0.00016931,2]
[365171858,1749511852054,-611.29,0.00016931,2]
[365171859,1749511852064,-490.0,0.00016931,2]
[365171860,1749511852075,-490.0,0.00016931,2]
[365171861,1749511852085,-490.0,0.00016931,2]
[365171862,1749511852096,-490.0,0.00016931,2]
[365171863,1749511852107,-513.81,0.00016931,2]
[365171864,1749511852118,-504.39,0.00016931,2]
[365171865,1749511852129,-490.0,0.00016931,2]
[365171866,1749511852140,-1292.262258,0.00016931,2]
[365171867,1749511852150,-557.8,0.00016931,2]
[365171868,1749511852160,-1292.262258,0.00016931,2]
[365171869,1749511852170,-630.91,0.00016931,2]
[365171870,1749511852180,-490.0,0.00016931,2]
[365171871,1749511852190,-490.0,0.00016931,2]
[365171872,1749511852200,-1292.262258,0.00016931,2]
[365171873,1749511852210,-1292.26225335,0.00016931,2]
[365171874,1749511852221,-490.0,0.00016931,2]
[365171875,1749511852231,-594.95,0.00016931,2]
[365171876,1749511852241,-151.0,0.00016931,2]
[365171877,1749511852251,-490.0,0.00016931,2]
[365171878,1749511852262,-888.3,0.00016931,2]
[365171879,1749511852272,-722.69,0.00016931,2]
[365171880,1749511852282,-1597.29,0.00016931,2]
[365171881,1749511852292,-490.0,0.00016931,2]
[365171882,1749511852303,-515.27,0.00016931,2]
[365171883,1749511852317,-523.46,0.00016931,2]
[365171884,1749511852327,-850.96,0.00016931,2]
[365171885,1749511852338,-1191.23,0.00016931,2]
[365171886,1749511852349,-200.0,0.00017009,2]
[365171887,1749511852359,-1863.58789516,0.00017017,2]
[365171888,1749511852369,-1000.0,0.00017021,2]
[365171889,1749511852380,-1000.0,0.00017021,2]
[365171890,1749511852391,-1000.0,0.00017021,2]
[365171891,1749511852402,-250.0,0.00017052,2]
[365171892,1749511852412,-200.0,0.00017095,2]
[365171893,1749511852423,-490.0,0.00017095,2]
[365171894,1749511852433,-490.0,0.00017095,2]
[365171895,1749511852444,-490.0,0.00017095,2]
[365171896,1749511852454,-490.0,0.00017095,2]
[365171897,1749511852464,-490.0,0.00017095,2]
[365171898,1749511852474,-490.0,0.00017095,2]
[365171899,1749511852484,-490.0,0.00017095,2]
[365171900,1749511852496,-284.65009417,0.00017095,2]
[365171901,1749511852506,-490.0,0.00017095,2]
[365171902,1749511852515,-490.0,0.00017095,2]
[365171903,1749511852526,-490.0,0.00017095,2]
[365171904,1749511852536,-490.0,0.00017095,2]
[365171905,1749511852546,-490.0,0.00017095,2]
[365171906,1749511852556,-490.0,0.00017095,2]
[365171907,1749511852566,-490.0,0.00017095,2]
[365171908,1749511852576,-150.0,0.00017095,2]
[365171909,1749511852587,-528.68,0.00017095,2]
[365171910,1749511852597,-200.0,0.00017095,2]
[365171911,1749511852607,-150.0,0.00017095,2]
[365171912,1749511852617,-490.0,0.00017095,2]
[365171913,1749511852627,-500.0,0.00017095,2]
[365171914,1749511852637,-568.66,0.00017095,2]
[365171915,1749511852647,-150.0,0.00017095,2]
[365171916,1749511852657,-490.0,0.00017095,2]
[365171917,1749511852668,-500.0,0.00017095,2]
[365171918,1749511852678,-612.88,0.00017095,2]
[365171919,1749511852688,-490.0,0.00017095,2]
[365171920,1749511852698,-490.0,0.00017095,2]
[365171921,1749511852708,-490.0,0.00017095,2]
[365171922,1749511852717,-490.0,0.00017095,2]
[365171923,1749511852727,-490.0,0.00017095,2]
[365171924,1749511852737,-490.0,0.00017095,2]
[365171925,1749511852747,-490.0,0.00017095,2]
[365171926,1749511852756,-490.0,0.00017095,2]
[365171927,1749511852766,-490.0,0.00017095,2]
[365171928,1749511852775,-681.27,0.00017095,2]
[365171929,1749511852785,-811.16,0.00017095,2]
[365171930,1749511852795,-490.0,0.00017095,2]
[365171931,1749511852805,-490.0,0.00017095,2]
[365171932,1749511852815,-495.99294104,0.00017095,2]
[365171933,1749511852825,-490.0,0.00017095,2]
[365171934,1749511852835,-490.0,0.00017095,2]
[365171935,1749511852844,-490.0,0.00017095,2]
[365171936,1749511852854,-490.0,0.00017095,2]
[365171937,1749511852863,-1203.79,0.00017095,2]
[365171938,1749511852874,-490.0,0.00017095,2]
[365171939,1749511852884,-151.0,0.00017095,2]
[365171940,1749511852893,-151.0,0.00017095,2]
[365171941,1749511852903,-490.0,0.00017095,2]
[365171942,1749511852914,-873.43,0.00017095,2]
[365171943,1749511852924,-490.0,0.00017095,2]
[365171944,1749511852934,-490.0,0.00017095,2]
[365171945,1749511852944,-490.0,0.00017095,2]
[365171946,1749511852954,-490.0,0.00017095,2]
[365171947,1749511852964,-491.34,0.00017095,2]
[365171948,1749511852974,-490.0,0.00017095,2]
[365171949,1749511852983,-490.0,0.00017095,2]
[365171950,1749511852993,-513.06,0.00017095,2]
[365171951,1749511853003,-490.0,0.00017095,2]
[365171952,1749511853014,-151.0,0.00017095,2]
[365171953,1749511853023,-151.0,0.00017095,2]
[365171954,1749511853033,-490.0,0.00017095,2]
[365171955,1749511853043,-490.0,0.00017095,2]
[365171956,1749511853052,-490.0,0.00017095,2]
[365171957,1749511853064,-490.0,0.00017095,2]
[365171958,1749511853073,-565.93,0.00017095,2]
[365171959,1749511853083,-490.0,0.00017095,2]
[365171960,1749511853093,-490.0,0.00017095,2]
[365171961,1749511853102,-490.0,0.00017095,2]
[365171962,1749511853112,-490.0,0.00017095,2]
[365171963,1749511853121,-490.0,0.00017095,2]
[365171964,1749511853131,-279.915174,0.00017095,2]
[365171965,1749511853141,-279.915174,0.00017095,2]
[365171966,1749511853151,-490.0,0.00017095,2]
[365171967,1749511853160,-279.915174,0.00017095,2]
[365171968,1749511853170,-279.915174,0.00017095,2]
[365171969,1749511853180,-490.0,0.00017095,2]
[365171970,1749511853189,-490.0,0.00017095,2]
[365171971,1749511853199,-490.0,0.00017095,2]
[365171972,1749511853209,-490.0,0.00017095,2]
[365171973,1749511853219,-490.0,0.00017095,2]
[365171974,1749511853229,-490.0,0.00017095,2]
[365171975,1749511853238,-490.0,0.00017095,2]
[365171976,1749511853248,-490.0,0.00017095,2]
[365171977,1749511853258,-490.0,0.00017095,2]
[365171978,1749511853267,-686.65,0.00017095,2]
[365171979,1749511853277,-375.47778807,0.00017095,2]
[365171980,1749511853287,-490.0,0.00017095,2]
[365171981,1749511853296,-490.0,0.00017095,2]
[365171982,1749511853308,-490.0,0.00017095,2]
[365171983,1749511853319,-490.0,0.00017095,2]
[365171984,1749511853329,-490.0,0.00017095,2]
[365171985,1749511853338,-490.0,0.00017095,2]
[365171986,1749511853348,-490.0,0.00017095,2]
[365171987,1749511853359,-756.82,0.00017095,2]
[365171988,1749511853368,-490.0,0.00017095,2]
[365171989,1749511853378,-626.45,0.00017095,2]
[365171990,1749511853390,-369.14141995,0.00017095,2]
[365171991,1749511853401,-510.58,0.00017095,2]
[365171992,1749511853411,-490.0,0.00017095,2]
[365171993,1749511853421,-490.0,0.00017095,2]
[365171994,1749511853431,-490.0,0.00017095,2]
[365171995,1749511853441,-536.8,0.00017095,2]
[365171996,1749511853451,-490.0,0.00017095,2]
[365171997,1749511853461,-490.68,0.00017095,2]
[365171998,1749511853470,-490.0,0.00017095,2]
[365171999,1749511853480,-490.0,0.00017095,2]
[365172000,1749511853490,-490.0,0.00017095,2]
[365172001,1749511853500,-1543.524347,0.00017095,2]
[365172002,1749511853510,-1543.524347,0.00017095,2]
[365172003,1749511853520,-666.57,0.00017095,2]
[365172004,1749511853529,-1543.524347,0.00017095,2]
[365172005,1749511853540,-1543.524347,0.00017095,2]
[365172006,1749511853549,-490.0,0.00017095,2]
[365172007,1749511853559,-490.0,0.00017095,2]
[365172008,1749511853569,-490.0,0.00017095,2]
[365172009,1749511853579,-490.0,0.00017095,2]
[365172010,1749511853588,-490.0,0.00017095,2]
[365172011,1749511853599,-151.0,0.00017095,2]
[365172012,1749511853609,-151.0,0.00017095,2]
[365172013,1749511853620,-535.13150172,0.00017095,2]
[365172014,1749511853630,-490.0,0.00017095,2]
[365172015,1749511853640,-490.0,0.00017095,2]
[365172016,1749511853652,-490.0,0.00017095,2]
[365172017,1749511853662,-490.0,0.00017095,2]
[365172018,1749511853671,-490.0,0.00017095,2]
[365172019,1749511853681,-905.53,0.00017095,2]
[365172020,1749511853691,-490.0,0.00017095,2]
[365172021,1749511853703,-543.99,0.00017095,2]
[365172022,1749511853715,-490.0,0.00017095,2]
[365172023,1749511853724,-490.0,0.00017095,2]
[365172024,1749511853734,-490.0,0.00017095,2]
[365172025,1749511853744,-490.0,0.00017095,2]
[365172026,1749511853754,-490.0,0.00017095,2]
[365172027,1749511853763,-1195.08,0.00017095,2]
[365172028,1749511853773,-490.0,0.00017095,2]
[365172029,1749511853783,-561.17,0.00017095,2]
[365172030,1749511853793,-490.0,0.00017095,2]
[365172031,1749511853803,-490.0,0.00017095,2]
[365172032,1749511853813,-490.0,0.00017095,2]
[365172033,1749511853823,-815.01,0.00017095,2]
[365172034,1749511853833,-518.23,0.00017095,2]
[365172035,1749511853844,-547.19,0.00017095,2]
[365172036,1749511853855,-1508.01,0.00017095,2]
[365172037,1749511853864,-490.0,0.00017095,2]
[365172038,1749511853874,-490.0,0.00017095,2]
[365172039,1749511853884,-490.0,0.00017095,2]
[365172040,1749511853894,-490.0,0.00017095,2]
[365172041,1749511853905,-2593.63,0.00017095,2]
[365172042,1749511853915,-490.0,0.00017095,2]
[365172043,1749511853925,-1114.94,0.00017095,2]
[365172044,1749511853936,-490.0,0.00017095,2]
[365172045,1749511853947,-490.0,0.00017095,2]
[365172046,1749511854242,-1002.67,0.00017095,2]
[365172047,1749511854255,-490.0,0.00017095,2]
[365172048,1749511854266,-490.0,0.00017095,2]
[365172049,1749511854275,-1295.21,0.00017095,2]
[365172050,1749511854284,-490.0,0.00017095,2]
[365172051,1749511854294,-490.0,0.00017095,2]
[365172052,1749511854304,-490.0,0.00017095,2]
[365172053,1749511854318,-490.0,0.00017095,2]
[365172054,1749511854328,-490.0,0.00017095,2]
[365172055,1749511854337,-490.0,0.00017095,2]
[365172056,1749511854347,-546.21,0.00017095,2]
[365172057,1749511854358,-490.0,0.00017095,2]
[365172058,1749511854367,-371.23153827,0.00017095,2]
[365172059,1749511854377,-740.01,0.00017095,2]
[365172060,1749511854388,-490.0,0.00017095,2]
[365172061,1749511854399,-490.0,0.00017095,2]
[365172062,1749511854409,-490.0,0.00017095,2]
[365172063,1749511854419,-490.0,0.00017095,2]
[365172064,1749511854429,-626.45,0.00017095,2]
[365172065,1749511854439,-490.0,0.00017095,2]
[365172066,1749511854451,-490.0,0.00017095,2]
[365172067,1749511854461,-535.83,0.00017095,2]
[365172068,1749511854471,-759.85,0.00017095,2]
[365172069,1749511854482,-490.0,0.00017095,2]
[365172070,1749511854492,-490.0,0.00017095,2]
[365172071,1749511854502,-1329.3,0.00017095,2]
[365172072,1749511854512,-490.0,0.00017095,2]
[365172073,1749511854522,-527.31,0.00017095,2]
[365172074,1749511854532,-554.35416965,0.00017095,2]
[365172075,1749511854543,-490.0,0.00017095,2]
[365172076,1749511854552,-256.42265856,0.00017095,2]
[365172077,1749511854563,-490.0,0.00017095,2]
[365172078,1749511854573,-490.0,0.00017095,2]
[365172079,1749511854583,-490.0,0.00017095,2]
[365172080,1749511854594,-512.92,0.00017095,2]
[365172081,1749511854604,-616.16,0.00017095,2]
[365172082,1749511854613,-1264.3,0.00017095,2]
[365172083,1749511854624,-490.0,0.00017095,2]
[365172084,1749511854633,-490.0,0.00017095,2]
[365172085,1749511854643,-490.0,0.00017095,2]
[365172086,1749511854652,-610.13,0.00017095,2]
[365172087,1749511854662,-660.15,0.00017095,2]
[365172088,1749511854672,-1121.41,0.00017095,2]
[365172089,1749511854683,-498.87,0.00017095,2]
[365172090,1749511854693,-555.04,0.00017095,2]
[365172091,1749511854703,-764.26,0.00017095,2]
[365172092,1749511854713,-672.84,0.00017095,2]
[365172093,1749511854723,-627.49,0.00017095,2]
[365172094,1749511854733,-1275.4,0.00017095,2]
[365172095,1749511854743,-490.0,0.00017095,2]
[365172096,1749511854752,-772.9,0.00017095,2]
[365172097,1749511854762,-490.0,0.00017095,2]
[365172098,1749511854771,-1208.78,0.00017095,2]
[365172099,1749511854781,-490.0,0.00017095,2]
[365172100,1749511854791,-490.0,0.00017095,2]
[365172101,1749511854800,-490.0,0.00017095,2]
[365172102,1749511854810,-490.0,0.00017095,2]
[365172103,1749511854819,-506.43,0.00017095,2]
[365172104,1749511854829,-490.0,0.00017095,2]
[365172105,1749511854839,-490.0,0.00017095,2]
[365172106,1749511854848,-502.19,0.00017095,2]
[365172107,1749511854858,-490.0,0.00017095,2]
[365172108,1749511854868,-3249.0,0.00017095,2]
[365172109,1749511854878,-634.37,0.00017095,2]
[365172110,1749511854888,-800.68,0.00017095,2]
[365172111,1749511854898,-490.0,0.00017095,2]
[365172112,1749511854908,-490.0,0.00017095,2]
[365172113,1749511854917,-896.11,0.00017095,2]
[365172114,1749511854927,-592.23383672,0.00017095,2]
[365172115,1749511854937,-681.52,0.00017095,2]
[365172116,1749511854947,-490.0,0.00017095,2]
[365172117,1749511854956,-490.0,0.00017095,2]
[365172118,1749511854967,-2965.23,0.00017095,2]
[365172119,1749511854976,-490.0,0.00017095,2]
[365172120,1749511854986,-490.0,0.00017095,2]
[365172121,1749511854996,-490.0,0.00017095,2]
[365172122,1749511855006,-490.0,0.00017095,2]
[365172123,1749511855016,-490.0,0.00017095,2]
[365172124,1749511855026,-719.75,0.00017095,2]
[365172125,1749511855036,-490.0,0.00017095,2]
[365172126,1749511855046,-490.0,0.00017095,2]
[365172127,1749511855056,-151.0,0.00017095,2]
[365172128,1749511855066,-158.216576,0.00017095,2]
[365172129,1749511855076,-616.58,0.00017095,2]
[365172130,1749511855085,-490.0,0.00017095,2]
[365172131,1749511855095,-490.0,0.00017095,2]
[365172132,1749511855105,-497.74,0.00017095,2]
[365172133,1749511855114,-730.14,0.00017095,2]
[365172134,1749511855123,-490.0,0.00017095,2]
[365172135,1749511855133,-582.3,0.00017095,2]
[365172136,1749511855142,-1070.79,0.00017095,2]
[365172137,1749511855152,-490.0,0.00017095,2]
[365172138,1749511855161,-839.92,0.00017095,2]
[365172139,1749511855171,-686.6,0.00017095,2]
[365172140,1749511855180,-501.75,0.00017095,2]
[365172141,1749511855190,-490.0,0.00017095,2]
[365172142,1749511855199,-490.0,0.00017095,2]
[365172143,1749511855209,-1307.39,0.00017095,2]
[365172144,1749511855218,-30997.62,0.00017095,2]
[365172145,1749511855228,-613.87,0.00017095,2]
[365172146,1749511855238,-490.0,0.00017095,2]
[365172147,1749511855248,-611.29,0.00017095,2]
[365172148,1749511855258,-490.0,0.00017095,2]
[365172149,1749511855268,-490.0,0.00017095,2]
[365172150,1749511855278,-490.0,0.00017095,2]
[365172151,1749511855288,-490.0,0.00017095,2]
[365172152,1749511855298,-513.81,0.00017095,2]
[365172153,1749511855309,-504.39,0.00017095,2]
[365172154,1749511855320,-490.0,0.00017095,2]
[365172155,1749511855330,-557.8,0.00017095,2]
[365172156,1749511855339,-630.91,0.00017095,2]
[365172157,1749511855351,-490.0,0.00017095,2]
[365172158,1749511855361,-490.0,0.00017095,2]
[365172159,1749511855370,-292.433631,0.00017095,2]
[365172160,1749511855380,-292.433631,0.00017095,2]
[365172161,1749511855392,-490.0,0.00017095,2]
[365172162,1749511855401,-292.433631,0.00017095,2]
[365172163,1749511855411,-594.95,0.00017095,2]
[365172164,1749511855421,-292.433631,0.00017095,2]
[365172165,1749511855431,-490.0,0.00017095,2]
[365172166,1749511855441,-888.3,0.00017095,2]
[365172167,1749511855450,-722.69,0.00017095,2]
[365172168,1749511855460,-1597.29,0.00017095,2]
[365172169,1749511855470,-490.0,0.00017095,2]
[365172170,1749511855479,-515.27,0.00017095,2]
[365172171,1749511855489,-523.46,0.00017095,2]
[365172172,1749511855498,-850.96,0.00017095,2]
[365172173,1749511855507,-1191.23,0.00017095,2]
[365172174,1749511855518,-9496.90321211,0.00017105,2]
[365172175,1749511855527,-150.0,0.00017122,2]
[365172176,1749511855536,-150.0,0.00017122,2]
[365172177,1749511855545,-500.0,0.00017122,2]
[365172178,1749511855555,-150.0,0.00017122,2]
[365172179,1749511855564,-500.0,0.00017122,2]
[365172180,1749511855574,-150.0,0.0001715,2]
[365172181,1749511855583,-150.0,0.0001715,2]
[365172182,1749511855593,-150.0,0.0001715,2]
[365172183,1749511855602,-150.0,0.0001715,2]
[365172184,1749511855612,-150.0,0.0001715,2]
[365172185,1749511855621,-150.0,0.00017177,2]
[365172186,1749511855631,-150.0,0.00017177,2]
[365172187,1749511855641,-150.0,0.00017177,2]
[365172188,1749511855650,-200.0,0.00017179,2]
[365172189,1749511855660,-200.0,0.00017205,2]
[365172190,1749511855670,-150.0,0.00017205,2]
[365172191,1749511855679,-200.0,0.00017205,2]
[365172192,1749511855688,-231.04818514,0.00017232,2]
[365172193,1749511855697,-151.0,0.0001725,2]
[365172194,1749511855707,-152.39521258,0.0001725,2]
[365172195,1749511855716,-914.01,0.00017259,2]
[365172196,1749511855726,-339.312,0.00017259,2]
[365172197,1749511855736,-490.0,0.0001726,2]
[365172198,1749511855746,-490.0,0.0001726,2]
[365172199,1749511855756,-532.98117131,0.0001726,2]
[365172200,1749511855766,-490.0,0.0001726,2]
[365172201,1749511855775,-490.0,0.0001726,2]
[365172202,1749511855784,-490.0,0.0001726,2]
[365172203,1749511855794,-490.0,0.0001726,2]
[365172204,1749511855806,-490.0,0.0001726,2]
[365172205,1749511855817,-151.0,0.0001726,2]
[365172206,1749511855827,-490.0,0.0001726,2]
[365172207,1749511855837,-490.0,0.0001726,2]
[365172208,1749511855846,-151.0,0.0001726,2]
[365172209,1749511855857,-151.0,0.0001726,2]
[365172210,1749511855866,-500.0,0.0001726,2]
[365172211,1749511855875,-150.0,0.0001726,2]
[365172212,1749511855885,-151.0,0.0001726,2]
[365172213,1749511855894,-151.0,0.0001726,2]
[365172214,1749511855904,-490.0,0.0001726,2]
[365172215,1749511855913,-490.0,0.0001726,2]
[365172216,1749511855923,-490.0,0.0001726,2]
[365172217,1749511855932,-490.0,0.0001726,2]
[365172218,1749511855941,-151.0,0.0001726,2]
[365172219,1749511855951,-528.68,0.0001726,2]
[365172220,1749511855960,-490.0,0.0001726,2]
[365172221,1749511855969,-151.0,0.0001726,2]
[365172222,1749511855978,-151.0,0.0001726,2]
[365172223,1749511855987,-568.66,0.0001726,2]
[365172224,1749511855996,-490.0,0.0001726,2]
[365172225,1749511856006,-612.88,0.0001726,2]
[365172226,1749511856015,-490.0,0.0001726,2]
[365172227,1749511856024,-490.0,0.0001726,2]
[365172228,1749511856033,-490.0,0.0001726,2]
[365172229,1749511856043,-4876.025234,0.0001726,2]
[365172230,1749511856052,-490.0,0.0001726,2]
[365172231,1749511856061,-4876.025234,0.0001726,2]
[365172232,1749511856071,-490.0,0.0001726,2]
[365172233,1749511856081,-4876.025234,0.0001726,2]
[365172234,1749511856090,-4876.025234,0.0001726,2]
[365172235,1749511856100,-490.0,0.0001726,2]
[365172236,1749511856109,-490.0,0.0001726,2]
[365172237,1749511856119,-490.0,0.0001726,2]
[365172238,1749511856129,-490.0,0.0001726,2]
[365172239,1749511856138,-681.27,0.0001726,2]
[365172240,1749511856148,-811.16,0.0001726,2]
[365172241,1749511856157,-490.0,0.0001726,2]
[365172242,1749511856167,-490.0,0.0001726,2]
[365172243,1749511856176,-490.0,0.0001726,2]
[365172244,1749511856186,-490.0,0.0001726,2]
[365172245,1749511856196,-490.0,0.0001726,2]
[365172246,1749511856205,-490.0,0.0001726,2]
[365172247,1749511856215,-1203.79,0.0001726,2]
[365172248,1749511856225,-490.0,0.0001726,2]
[365172249,1749511856234,-490.0,0.0001726,2]
[365172250,1749511856244,-873.43,0.0001726,2]
[365172251,1749511856253,-490.0,0.0001726,2]
[365172252,1749511856263,-490.0,0.0001726,2]
[365172253,1749511856273,-151.0,0.0001726,2]
[365172254,1749511856282,-151.0,0.0001726,2]
[365172255,1749511856292,-490.0,0.0001726,2]
[365172256,1749511856302,-151.0,0.0001726,2]
[365172257,1749511856315,-490.0,0.0001726,2]
[365172258,1749511856325,-151.0,0.0001726,2]
[365172259,1749511856335,-491.34,0.0001726,2]
[365172260,1749511856344,-490.0,0.0001726,2]
[365172261,1749511856354,-490.0,0.0001726,2]
[365172262,1749511856365,-513.06,0.0001726,2]
[365172263,1749511856375,-490.0,0.0001726,2]
[365172264,1749511856388,-151.0,0.0001726,2]